[Event "Early Titled Tuesday Blitz | February 8 2022"]
[White "Aaditya Dhingra"]
[Black "Costachi, Mihnea"]
[WhiteFideId "25678191"]
[BlackFideId "1217518"]
[WhiteElo "1789"]
[BlackElo "2464"]
[Result "0-1"]
[Round "01"]
[TimeControl "180+1"]
[Date "2022.02.08"]
[WhiteClock "0:00:34"]
[BlackClock "0:00:45"]

1. e4 {[%clk 0:02:58]}  c5 {[%clk 0:02:58]} 2. Nf3 {[%clk 0:02:57]}  d6 {[%clk 0:02:55]} 3. d4 {[%clk 0:02:57]}  cxd4 {[%clk 0:02:56]} 4. Nxd4 {[%clk 0:02:55]}  Nf6 {[%clk 0:02:56]} 5. Nc3 {[%clk 0:02:55]}  Nc6 {[%clk 0:02:52]} 6. Bc4 {[%clk 0:02:53]}  e6 {[%clk 0:02:52]} 7. Be3 {[%clk 0:02:52]}  a6 {[%clk 0:02:51]} 8. Bb3 {[%clk 0:02:51]}  Bd7 {[%clk 0:02:51]} 9. Qe2 {[%clk 0:02:50]}  b5 {[%clk 0:02:49]} 10. f3 {[%clk 0:02:23]}  Be7 {[%clk 0:02:43]} 11. g4 {[%clk 0:02:04]}  O-O {[%clk 0:02:31]} 12. g5 {[%clk 0:01:50]}  Ne8 {[%clk 0:02:30]} 13. Nxc6 {[%clk 0:01:41]}  Bxc6 {[%clk 0:02:31]} 14. Rg1 {[%clk 0:01:40]}  b4 {[%clk 0:02:27]} 15. Nb1 {[%clk 0:01:37]}  a5 {[%clk 0:02:23]} 16. a4 {[%clk 0:01:36]}  d5 {[%clk 0:02:18]} 17. exd5 {[%clk 0:01:32]}  Bxd5 {[%clk 0:02:19]} 18. Nd2 {[%clk 0:01:30]}  Nd6 {[%clk 0:02:08]} 19. O-O-O {[%clk 0:01:28]}  Nf5 {[%clk 0:02:07]} 20. Ne4 {[%clk 0:01:16]}  Rc8 {[%clk 0:01:57]} 21. Kb1 {[%clk 0:01:14]}  Qc7 {[%clk 0:01:50]} 22. Nf6+ {[%clk 0:01:04]}  Bxf6 {[%clk 0:01:26]} 23. gxf6 {[%clk 0:01:03]}  g6 {[%clk 0:01:26]} 24. Bxd5 {[%clk 0:00:41]}  exd5 {[%clk 0:01:17]} 25. Rxd5 {[%clk 0:00:38]}  Nxe3 {[%clk 0:01:11]} 26. Qxe3 {[%clk 0:00:38]}  Qxc2+ {[%clk 0:01:09]} 27. Ka1 {[%clk 0:00:38]}  Qxa4+ {[%clk 0:01:09]} 28. Kb1 {[%clk 0:00:38]}  b3 {[%clk 0:01:03]} 29. Rc5 {[%clk 0:00:36]}  Qa2+ {[%clk 0:00:56]} 30. Kc1 {[%clk 0:00:36]}  Qa1+ {[%clk 0:00:56]} 31. Kd2 {[%clk 0:00:35]}  Qxb2+ {[%clk 0:00:57]} 32. Ke1 {[%clk 0:00:34]}  Rce8 {[%clk 0:00:45]} 0-1


[Site "https://www.chess.com"]

[Event "Early Titled Tuesday Blitz | February 8 2022"]
[White "Abdusattorov, Nodirbek"]
[Black "Golizadeh, Asghar"]
[WhiteFideId "14204118"]
[BlackFideId "12505269"]
[WhiteElo "2663"]
[BlackElo "2403"]
[Result "1-0"]
[Round "01"]
[TimeControl "180+1"]
[Date "2022.02.08"]
[WhiteClock "0:01:20"]
[BlackClock "0:00:01"]

1. e4 {[%clk 0:02:57]}  c5 {[%clk 0:02:56]} 2. Nf3 {[%clk 0:02:57]}  d6 {[%clk 0:02:55]} 3. d4 {[%clk 0:02:55]}  cxd4 {[%clk 0:02:56]} 4. Nxd4 {[%clk 0:02:56]}  Nf6 {[%clk 0:02:56]} 5. Nc3 {[%clk 0:02:57]}  a6 {[%clk 0:02:57]} 6. Be2 {[%clk 0:02:53]}  e5 {[%clk 0:02:56]} 7. Nb3 {[%clk 0:02:53]}  Be7 {[%clk 0:02:55]} 8. Be3 {[%clk 0:02:51]}  Be6 {[%clk 0:02:54]} 9. O-O {[%clk 0:02:48]}  O-O {[%clk 0:02:52]} 10. Qd3 {[%clk 0:02:48]}  b5 {[%clk 0:02:49]} 11. Nd5 {[%clk 0:02:34]}  Bxd5 {[%clk 0:02:02]} 12. exd5 {[%clk 0:02:34]}  Nbd7 {[%clk 0:02:03]} 13. a4 {[%clk 0:02:31]}  bxa4 {[%clk 0:01:52]} 14. Rxa4 {[%clk 0:02:31]}  Nb6 {[%clk 0:01:53]} 15. Ra5 {[%clk 0:02:27]}  Qc7 {[%clk 0:01:39]} 16. c4 {[%clk 0:02:21]}  Nfd7 {[%clk 0:01:32]} 17. Rfa1 {[%clk 0:02:18]}  f5 {[%clk 0:00:19]} 18. Rxa6 {[%clk 0:02:17]}  Rxa6 {[%clk 0:00:20]} 19. Rxa6 {[%clk 0:02:18]}  f4 {[%clk 0:00:20]} 20. Bxb6 {[%clk 0:02:12]}  Nxb6 {[%clk 0:00:19]} 21. Nd2 {[%clk 0:02:12]}  Nd7 {[%clk 0:00:19]} 22. b4 {[%clk 0:02:07]}  Qb7 {[%clk 0:00:19]} 23. Ra4 {[%clk 0:02:05]}  Ra8 {[%clk 0:00:19]} 24. Rxa8+ {[%clk 0:02:04]}  Qxa8 {[%clk 0:00:20]} 25. Qb1 {[%clk 0:01:59]}  Qa3 {[%clk 0:00:14]} 26. Ne4 {[%clk 0:01:59]}  Nb6 {[%clk 0:00:06]} 27. h3 {[%clk 0:01:56]}  h6 {[%clk 0:00:04]} 28. c5 {[%clk 0:01:46]}  Nxd5 {[%clk 0:00:04]} 29. Bc4 {[%clk 0:01:45]}  Kh8 {[%clk 0:00:01]} 30. Bxd5 {[%clk 0:01:44]}  dxc5 {[%clk 0:00:02]} 31. bxc5 {[%clk 0:01:45]}  Bxc5 {[%clk 0:00:03]} 32. Nxc5 {[%clk 0:01:42]}  Qxc5 {[%clk 0:00:04]} 33. Qb8+ {[%clk 0:01:42]}  Kh7 {[%clk 0:00:04]} 34. Qg8+ {[%clk 0:01:35]}  Kg6 {[%clk 0:00:04]} 35. Qf7+ {[%clk 0:01:36]}  Kg5 {[%clk 0:00:01]} 36. Qxg7+ {[%clk 0:01:29]}  Kf5 {[%clk 0:00:02]} 37. Qf7+ {[%clk 0:01:21]}  Kg5 {[%clk 0:00:02]} 38. h4+ {[%clk 0:01:22]}  Kxh4 {[%clk 0:00:01]} 39. Qf6+ {[%clk 0:01:21]}  Kh5 {[%clk 0:00:01]} 40. Bf3# {[%clk 0:01:20]} 1-0


[Site "https://www.chess.com"]

[Event "Early Titled Tuesday Blitz | February 8 2022"]
[White "Agibileg, Uurtsaikh"]
[Black "Ardila, Oscar Humberto"]
[WhiteFideId "4901606"]
[BlackFideId "4404742"]
[WhiteElo "2205"]
[BlackElo "1898"]
[Result "1-0"]
[Round "01"]
[TimeControl "180+1"]
[Date "2022.02.08"]
[WhiteClock "0:00:11"]
[BlackClock "0:00:01"]

1. d4 {[%clk 0:03:00]}  Nf6 {[%clk 0:02:53]} 2. c4 {[%clk 0:02:58]}  e6 {[%clk 0:02:52]} 3. Nc3 {[%clk 0:02:57]}  c5 {[%clk 0:02:51]} 4. d5 {[%clk 0:02:53]}  exd5 {[%clk 0:02:50]} 5. cxd5 {[%clk 0:02:53]}  d6 {[%clk 0:02:48]} 6. e4 {[%clk 0:02:53]}  Nbd7 {[%clk 0:02:47]} 7. Nf3 {[%clk 0:02:51]}  Be7 {[%clk 0:02:45]} 8. Bd3 {[%clk 0:02:50]}  O-O {[%clk 0:02:44]} 9. O-O {[%clk 0:02:50]}  a6 {[%clk 0:02:43]} 10. a4 {[%clk 0:02:49]}  Qc7 {[%clk 0:02:43]} 11. Re1 {[%clk 0:02:32]}  Ng4 {[%clk 0:02:29]} 12. Bf4 {[%clk 0:02:30]}  Nge5 {[%clk 0:02:29]} 13. Nxe5 {[%clk 0:02:30]}  Nxe5 {[%clk 0:02:23]} 14. Bxe5 {[%clk 0:02:25]}  dxe5 {[%clk 0:02:23]} 15. a5 {[%clk 0:02:26]}  Bd6 {[%clk 0:02:07]} 16. Qd2 {[%clk 0:02:06]}  Bd7 {[%clk 0:02:01]} 17. Na4 {[%clk 0:02:06]}  Rad8 {[%clk 0:01:42]} 18. Nb6 {[%clk 0:02:03]}  Bg4 {[%clk 0:01:33]} 19. h3 {[%clk 0:01:56]}  Bh5 {[%clk 0:01:33]} 20. Be2 {[%clk 0:01:44]}  Bg6 {[%clk 0:01:32]} 21. Bg4 {[%clk 0:01:41]}  h5 {[%clk 0:01:26]} 22. Bf3 {[%clk 0:01:37]}  Qe7 {[%clk 0:01:22]} 23. b3 {[%clk 0:01:37]}  Qf6 {[%clk 0:01:05]} 24. Rad1 {[%clk 0:01:27]}  Qf4 {[%clk 0:00:35]} 25. Qxf4 {[%clk 0:01:25]}  exf4 {[%clk 0:00:36]} 26. e5 {[%clk 0:01:18]}  Bc7 {[%clk 0:00:36]} 27. Nc4 {[%clk 0:01:08]}  Bc2 {[%clk 0:00:35]} 28. d6 {[%clk 0:01:09]}  Bb8 {[%clk 0:00:35]} 29. Rc1 {[%clk 0:00:56]}  Bxb3 {[%clk 0:00:35]} 30. Nd2 {[%clk 0:00:56]}  Be6 {[%clk 0:00:28]} 31. Bxb7 {[%clk 0:00:49]}  Ba7 {[%clk 0:00:28]} 32. Bxa6 {[%clk 0:00:48]}  Rb8 {[%clk 0:00:26]} 33. Bc4 {[%clk 0:00:46]}  Rb4 {[%clk 0:00:19]} 34. Bxe6 {[%clk 0:00:44]}  fxe6 {[%clk 0:00:20]} 35. Re4 {[%clk 0:00:37]}  Rfb8 {[%clk 0:00:19]} 36. Rxb4 {[%clk 0:00:36]}  Rxb4 {[%clk 0:00:20]} 37. Nc4 {[%clk 0:00:27]}  Kf7 {[%clk 0:00:19]} 38. Kf1 {[%clk 0:00:24]}  Ke8 {[%clk 0:00:19]} 39. Ke2 {[%clk 0:00:24]}  Kd7 {[%clk 0:00:20]} 40. Kf3 {[%clk 0:00:25]}  g5 {[%clk 0:00:19]} 41. h4 {[%clk 0:00:24]}  Rb3+ {[%clk 0:00:20]} 42. Ke4 {[%clk 0:00:25]}  gxh4 {[%clk 0:00:17]} 43. Kxf4 {[%clk 0:00:25]}  Rb4 {[%clk 0:00:15]} 44. Kg5 {[%clk 0:00:25]}  Kc6 {[%clk 0:00:15]} 45. Kxh4 {[%clk 0:00:23]}  Bb8 {[%clk 0:00:12]} 46. Kxh5 {[%clk 0:00:23]}  Rb3 {[%clk 0:00:11]} 47. f4 {[%clk 0:00:22]}  Rd3 {[%clk 0:00:07]} 48. Rb1 {[%clk 0:00:22]}  Ba7 {[%clk 0:00:07]} 49. a6 {[%clk 0:00:20]}  Rd4 {[%clk 0:00:07]} 50. Na5+ {[%clk 0:00:20]}  Kd5 {[%clk 0:00:05]} 51. Rb7 {[%clk 0:00:17]}  Ke4 {[%clk 0:00:05]} 52. Rxa7 {[%clk 0:00:17]}  Kxf4 {[%clk 0:00:05]} 53. Nc6 {[%clk 0:00:16]}  Rd5 {[%clk 0:00:04]} 54. Ne7 {[%clk 0:00:15]}  Rxe5+ {[%clk 0:00:04]} 55. Kg6 {[%clk 0:00:12]}  Rg5+ {[%clk 0:00:03]} 56. Kf6 {[%clk 0:00:12]}  Rxg2 {[%clk 0:00:04]} 57. Kxe6 {[%clk 0:00:12]}  c4 {[%clk 0:00:03]} 58. d7 {[%clk 0:00:12]}  Rd2 {[%clk 0:00:02]} 59. Nd5+ {[%clk 0:00:13]}  Ke4 {[%clk 0:00:01]} 60. d8=Q {[%clk 0:00:13]}  c3 {[%clk 0:00:02]} 61. Re7 {[%clk 0:00:13]}  Kd3 {[%clk 0:00:01]} 62. Nf4+ {[%clk 0:00:13]}  Kc2 {[%clk 0:00:02]} 63. Qc8 {[%clk 0:00:11]}  Rd4 {[%clk 0:00:01]} 64. Rc7 {[%clk 0:00:11]} 1-0


[Site "https://www.chess.com"]

[Event "Early Titled Tuesday Blitz | February 8 2022"]
[White "Albertini, Luca"]
[Black "Ezat, Mohamed"]
[WhiteFideId "847038"]
[BlackFideId "10600906"]
[WhiteElo "2207"]
[BlackElo "2386"]
[Result "0-1"]
[Round "01"]
[TimeControl "180+1"]
[Date "2022.02.08"]
[WhiteClock "0:00:09"]
[BlackClock "0:00:18"]

1. e4 {[%clk 0:02:59]}  c6 {[%clk 0:02:58]} 2. d4 {[%clk 0:02:57]}  d5 {[%clk 0:02:59]} 3. e5 {[%clk 0:02:57]}  c5 {[%clk 0:02:59]} 4. dxc5 {[%clk 0:02:58]}  Nc6 {[%clk 0:02:59]} 5. f4 {[%clk 0:02:57]}  Bf5 {[%clk 0:02:55]} 6. c3 {[%clk 0:02:55]}  e6 {[%clk 0:02:53]} 7. Be3 {[%clk 0:02:54]}  Nh6 {[%clk 0:02:48]} 8. Nf3 {[%clk 0:02:47]}  Bg4 {[%clk 0:02:47]} 9. Bb5 {[%clk 0:02:43]}  Nf5 {[%clk 0:02:45]} 10. Bf2 {[%clk 0:02:40]}  Be7 {[%clk 0:02:43]} 11. O-O {[%clk 0:02:39]}  O-O {[%clk 0:02:42]} 12. Bxc6 {[%clk 0:02:39]}  bxc6 {[%clk 0:02:42]} 13. b4 {[%clk 0:02:40]}  a5 {[%clk 0:02:41]} 14. Nbd2 {[%clk 0:02:38]}  f6 {[%clk 0:02:36]} 15. Qc2 {[%clk 0:02:33]}  Qb8 {[%clk 0:02:33]} 16. a3 {[%clk 0:02:31]}  Qb5 {[%clk 0:02:18]} 17. h3 {[%clk 0:02:19]}  Bxf3 {[%clk 0:02:17]} 18. Nxf3 {[%clk 0:02:20]}  Qc4 {[%clk 0:02:13]} 19. Qd2 {[%clk 0:02:07]}  h5 {[%clk 0:02:08]} 20. Rfe1 {[%clk 0:02:03]}  Ra6 {[%clk 0:02:05]} 21. Nd4 {[%clk 0:01:53]}  Nxd4 {[%clk 0:02:02]} 22. Bxd4 {[%clk 0:01:51]}  fxe5 {[%clk 0:01:58]} 23. Bxe5 {[%clk 0:01:21]}  Bf6 {[%clk 0:01:54]} 24. Qe2 {[%clk 0:01:00]}  Qxe2 {[%clk 0:01:51]} 25. Rxe2 {[%clk 0:01:01]}  Kf7 {[%clk 0:01:45]} 26. Rae1 {[%clk 0:00:57]}  Bh4 {[%clk 0:01:41]} 27. Rf1 {[%clk 0:00:54]}  g6 {[%clk 0:01:38]} 28. Bd6 {[%clk 0:00:54]}  Rfa8 {[%clk 0:01:34]} 29. Rf3 {[%clk 0:00:46]}  axb4 {[%clk 0:01:33]} 30. axb4 {[%clk 0:00:46]}  Ra2 {[%clk 0:01:30]} 31. Rxa2 {[%clk 0:00:44]}  Rxa2 {[%clk 0:01:30]} 32. g3 {[%clk 0:00:45]}  Bf6 {[%clk 0:01:29]} 33. Be5 {[%clk 0:00:43]}  Be7 {[%clk 0:01:25]} 34. Rf2 {[%clk 0:00:42]}  Ra1+ {[%clk 0:01:24]} 35. Kg2 {[%clk 0:00:42]}  Rb1 {[%clk 0:01:22]} 36. Kf3 {[%clk 0:00:41]}  g5 {[%clk 0:01:20]} 37. fxg5 {[%clk 0:00:40]}  Bxg5 {[%clk 0:01:20]} 38. Kg2+ {[%clk 0:00:40]}  Kg6 {[%clk 0:01:20]} 39. h4 {[%clk 0:00:38]}  Be7 {[%clk 0:01:18]} 40. Kf3 {[%clk 0:00:37]}  Re1 {[%clk 0:01:15]} 41. Bd6 {[%clk 0:00:33]}  Bf6 {[%clk 0:01:10]} 42. Rc2 {[%clk 0:00:28]}  Kf7 {[%clk 0:00:57]} 43. b5 {[%clk 0:00:28]}  cxb5 {[%clk 0:00:57]} 44. c6 {[%clk 0:00:29]}  Ke8 {[%clk 0:00:56]} 45. c7 {[%clk 0:00:30]}  Kd7 {[%clk 0:00:56]} 46. Ra2 {[%clk 0:00:30]}  Rc1 {[%clk 0:00:52]} 47. Bb4 {[%clk 0:00:10]}  Bxc3 {[%clk 0:00:35]} 48. Bxc3 {[%clk 0:00:11]}  Rxc3+ {[%clk 0:00:35]} 49. Kf4 {[%clk 0:00:12]}  Rc4+ {[%clk 0:00:18]} 50. Kg5 {[%clk 0:00:11]}  Rg4+ {[%clk 0:00:18]} 51. Kxh5 {[%clk 0:00:11]}  Rxg3 {[%clk 0:00:18]} 52. Rc2 {[%clk 0:00:10]}  Kc8 {[%clk 0:00:18]} 53. Kh6 {[%clk 0:00:09]}  d4 {[%clk 0:00:18]} 0-1


[Site "https://www.chess.com"]

[Event "Early Titled Tuesday Blitz | February 8 2022"]
[White "Aloma Vidal, Robert"]
[Black "Oye-Stromberg, Alexander"]
[WhiteFideId "2260409"]
[BlackFideId "1525999"]
[WhiteElo "2435"]
[BlackElo "1934"]
[Result "1-0"]
[Round "01"]
[TimeControl "180+1"]
[Date "2022.02.08"]
[WhiteClock "0:02:01"]
[BlackClock "0:00:58"]

1. e4 {[%clk 0:03:00]}  e6 {[%clk 0:02:57]} 2. d4 {[%clk 0:03:00]}  d5 {[%clk 0:02:56]} 3. e5 {[%clk 0:03:01]}  c5 {[%clk 0:02:56]} 4. c3 {[%clk 0:03:01]}  Nc6 {[%clk 0:02:56]} 5. Nf3 {[%clk 0:03:02]}  Qb6 {[%clk 0:02:55]} 6. a3 {[%clk 0:03:03]}  cxd4 {[%clk 0:02:48]} 7. cxd4 {[%clk 0:03:02]}  Nge7 {[%clk 0:02:49]} 8. b4 {[%clk 0:02:58]}  Nf5 {[%clk 0:02:48]} 9. Be3 {[%clk 0:02:52]}  Bd7 {[%clk 0:02:48]} 10. Bd3 {[%clk 0:02:51]}  Be7 {[%clk 0:02:27]} 11. O-O {[%clk 0:02:50]}  O-O {[%clk 0:02:25]} 12. Nc3 {[%clk 0:02:41]}  a5 {[%clk 0:02:05]} 13. Bxf5 {[%clk 0:02:35]}  axb4 {[%clk 0:01:43]} 14. axb4 {[%clk 0:02:34]}  Rxa1 {[%clk 0:01:37]} 15. Qxa1 {[%clk 0:02:33]}  exf5 {[%clk 0:01:31]} 16. Nxd5 {[%clk 0:02:33]}  Qd8 {[%clk 0:01:30]} 17. b5 {[%clk 0:02:28]}  Nb8 {[%clk 0:01:28]} 18. Nxe7+ {[%clk 0:02:05]}  Qxe7 {[%clk 0:01:28]} 19. d5 {[%clk 0:02:05]}  Bxb5 {[%clk 0:01:25]} 20. Rc1 {[%clk 0:02:04]}  Bd3 {[%clk 0:01:08]} 21. Bc5 {[%clk 0:02:01]}  Qe8 {[%clk 0:01:00]} 22. Qa3 {[%clk 0:02:01]}  Be4 {[%clk 0:00:58]} 23. Bxf8 {[%clk 0:02:01]} 1-0


[Site "https://www.chess.com"]

[Event "Early Titled Tuesday Blitz | February 8 2022"]
[White "Al-Tarboush, Ward"]
[Black "Van Foreest, Jorden"]
[WhiteFideId "7601450"]
[BlackFideId "1039784"]
[WhiteElo "2276"]
[BlackElo "2609"]
[Result "1-0"]
[Round "01"]
[TimeControl "180+1"]
[Date "2022.02.08"]
[WhiteClock "0:00:55"]
[BlackClock "0:01:06"]

1. e4 {[%clk 0:02:56]}  c6 {[%clk 0:02:59]} 2. Nf3 {[%clk 0:02:56]}  d5 {[%clk 0:02:58]} 3. Nc3 {[%clk 0:02:56]}  dxe4 {[%clk 0:02:58]} 4. Nxe4 {[%clk 0:02:57]}  Nf6 {[%clk 0:02:58]} 5. Nxf6+ {[%clk 0:02:57]}  exf6 {[%clk 0:02:59]} 6. Bc4 {[%clk 0:02:57]}  Bd6 {[%clk 0:02:56]} 7. Qe2+ {[%clk 0:02:58]}  Qe7 {[%clk 0:02:55]} 8. Qxe7+ {[%clk 0:02:57]}  Bxe7 {[%clk 0:02:55]} 9. O-O {[%clk 0:02:58]}  O-O {[%clk 0:02:55]} 10. Re1 {[%clk 0:02:58]}  Bd6 {[%clk 0:02:55]} 11. d4 {[%clk 0:02:59]}  Nd7 {[%clk 0:02:52]} 12. Bd3 {[%clk 0:02:58]}  Rd8 {[%clk 0:02:48]} 13. c4 {[%clk 0:02:57]}  Nf8 {[%clk 0:02:48]} 14. Be3 {[%clk 0:02:56]}  Bg4 {[%clk 0:02:47]} 15. a3 {[%clk 0:02:40]}  Bxf3 {[%clk 0:02:45]} 16. gxf3 {[%clk 0:02:40]}  Ne6 {[%clk 0:02:46]} 17. Rad1 {[%clk 0:02:35]}  Bf4 {[%clk 0:02:35]} 18. Bf5 {[%clk 0:02:34]}  Bxe3 {[%clk 0:02:33]} 19. fxe3 {[%clk 0:02:35]}  Ng5 {[%clk 0:02:28]} 20. Kf2 {[%clk 0:02:34]}  g6 {[%clk 0:02:27]} 21. Bc2 {[%clk 0:02:32]}  Rd6 {[%clk 0:02:25]} 22. d5 {[%clk 0:02:30]}  cxd5 {[%clk 0:02:23]} 23. cxd5 {[%clk 0:02:31]}  f5 {[%clk 0:02:19]} 24. h4 {[%clk 0:02:29]}  Rc8 {[%clk 0:02:18]} 25. Bb1 {[%clk 0:02:11]}  Rd7 {[%clk 0:02:12]} 26. hxg5 {[%clk 0:02:10]}  Rc5 {[%clk 0:02:13]} 27. e4 {[%clk 0:02:07]}  f4 {[%clk 0:02:13]} 28. Rc1 {[%clk 0:02:07]}  Rb5 {[%clk 0:02:13]} 29. b4 {[%clk 0:02:05]}  Rb6 {[%clk 0:02:11]} 30. Rc8+ {[%clk 0:02:04]}  Kg7 {[%clk 0:02:11]} 31. Rec1 {[%clk 0:02:05]}  Ra6 {[%clk 0:02:11]} 32. R1c3 {[%clk 0:02:05]}  h6 {[%clk 0:02:11]} 33. Bd3 {[%clk 0:02:04]}  Rad6 {[%clk 0:02:08]} 34. gxh6+ {[%clk 0:02:02]}  Kxh6 {[%clk 0:02:09]} 35. R3c7 {[%clk 0:02:02]}  a6 {[%clk 0:02:06]} 36. Bc4 {[%clk 0:02:00]}  f6 {[%clk 0:02:04]} 37. a4 {[%clk 0:01:38]}  Kg5 {[%clk 0:02:02]} 38. b5 {[%clk 0:01:37]}  a5 {[%clk 0:01:47]} 39. b6 {[%clk 0:01:37]}  Kh6 {[%clk 0:01:28]} 40. Bb5 {[%clk 0:01:36]}  Rd8 {[%clk 0:01:22]} 41. Rxd8 {[%clk 0:01:35]}  Rxd8 {[%clk 0:01:23]} 42. Rxb7 {[%clk 0:01:36]}  f5 {[%clk 0:01:24]} 43. Rd7 {[%clk 0:01:30]}  Rb8 {[%clk 0:01:20]} 44. b7 {[%clk 0:01:28]}  Kg5 {[%clk 0:01:19]} 45. Bc6 {[%clk 0:01:26]}  Rh8 {[%clk 0:01:19]} 46. Rc7 {[%clk 0:01:12]}  fxe4 {[%clk 0:01:20]} 47. fxe4 {[%clk 0:01:04]}  Kg4 {[%clk 0:01:17]} 48. Bd7+ {[%clk 0:01:04]}  Kg5 {[%clk 0:01:16]} 49. Rc8 {[%clk 0:01:03]}  Rh2+ {[%clk 0:01:16]} 50. Kg1 {[%clk 0:01:03]}  Re2 {[%clk 0:01:09]} 51. b8=Q {[%clk 0:01:02]}  Rxe4 {[%clk 0:01:10]} 52. Rg8 {[%clk 0:00:56]}  Re3 {[%clk 0:01:06]} 53. Qd8+ {[%clk 0:00:55]} 1-0


[Site "https://www.chess.com"]

[Event "Early Titled Tuesday Blitz | February 8 2022"]
[White "Arabidze, Meri"]
[Black "Sliwicki, Damian"]
[WhiteFideId "13604040"]
[BlackFideId "1127128"]
[WhiteElo "2329"]
[BlackElo "2084"]
[Result "1-0"]
[Round "01"]
[TimeControl "180+1"]
[Date "2022.02.08"]
[WhiteClock "0:00:33"]
[BlackClock "0:00:04"]

1. Nf3 {[%clk 0:03:00]}  c5 {[%clk 0:02:58]} 2. c4 {[%clk 0:03:00]}  Nc6 {[%clk 0:02:57]} 3. Nc3 {[%clk 0:03:00]}  g6 {[%clk 0:02:58]} 4. e3 {[%clk 0:02:59]}  Bg7 {[%clk 0:02:55]} 5. d4 {[%clk 0:03:00]}  cxd4 {[%clk 0:02:55]} 6. exd4 {[%clk 0:03:01]}  d6 {[%clk 0:02:55]} 7. d5 {[%clk 0:02:59]}  Nb8 {[%clk 0:02:54]} 8. Be2 {[%clk 0:02:57]}  Nf6 {[%clk 0:02:55]} 9. O-O {[%clk 0:02:57]}  O-O {[%clk 0:02:56]} 10. Bg5 {[%clk 0:02:56]}  Bg4 {[%clk 0:02:53]} 11. Re1 {[%clk 0:02:54]}  Bxf3 {[%clk 0:02:50]} 12. Bxf3 {[%clk 0:02:55]}  Nbd7 {[%clk 0:02:50]} 13. Rc1 {[%clk 0:02:53]}  a5 {[%clk 0:02:50]} 14. b3 {[%clk 0:02:52]}  Re8 {[%clk 0:02:45]} 15. g3 {[%clk 0:02:49]}  b6 {[%clk 0:02:41]} 16. Bg2 {[%clk 0:02:48]}  Rc8 {[%clk 0:02:36]} 17. Nb5 {[%clk 0:02:47]}  Nc5 {[%clk 0:02:32]} 18. Na7 {[%clk 0:02:47]}  Rc7 {[%clk 0:02:22]} 19. Nc6 {[%clk 0:02:47]}  Qc8 {[%clk 0:02:23]} 20. Rc2 {[%clk 0:02:40]}  Qf5 {[%clk 0:02:11]} 21. h4 {[%clk 0:02:29]}  Nce4 {[%clk 0:02:00]} 22. Be3 {[%clk 0:02:19]}  e6 {[%clk 0:01:53]} 23. Bxb6 {[%clk 0:02:17]}  Rb7 {[%clk 0:01:44]} 24. Bxa5 {[%clk 0:02:17]}  exd5 {[%clk 0:01:43]} 25. cxd5 {[%clk 0:02:18]}  Nxd5 {[%clk 0:01:34]} 26. Rce2 {[%clk 0:02:13]}  Ndf6 {[%clk 0:01:13]} 27. b4 {[%clk 0:02:13]}  d5 {[%clk 0:01:13]} 28. Nd4 {[%clk 0:02:01]}  Qc8 {[%clk 0:01:03]} 29. Nb3 {[%clk 0:01:58]}  Re6 {[%clk 0:01:00]} 30. Bh3 {[%clk 0:01:56]}  Nc3 {[%clk 0:00:45]} 31. Bxe6 {[%clk 0:01:56]}  fxe6 {[%clk 0:00:46]} 32. Qd2 {[%clk 0:01:51]}  Nxe2+ {[%clk 0:00:46]} 33. Qxe2 {[%clk 0:01:51]}  Re7 {[%clk 0:00:42]} 34. Nc5 {[%clk 0:01:50]}  e5 {[%clk 0:00:25]} 35. Qa6 {[%clk 0:01:48]}  Qf8 {[%clk 0:00:16]} 36. Ne6 {[%clk 0:01:44]}  Qf7 {[%clk 0:00:14]} 37. Nxg7 {[%clk 0:01:44]}  Kxg7 {[%clk 0:00:15]} 38. Qe2 {[%clk 0:01:39]}  e4 {[%clk 0:00:15]} 39. b5 {[%clk 0:01:39]}  d4 {[%clk 0:00:16]} 40. Bb4 {[%clk 0:01:37]}  d3 {[%clk 0:00:16]} 41. Qd2 {[%clk 0:01:34]}  Rd7 {[%clk 0:00:15]} 42. Bc3 {[%clk 0:01:33]}  Kg8 {[%clk 0:00:15]} 43. Bxf6 {[%clk 0:01:29]}  Qxf6 {[%clk 0:00:16]} 44. Rxe4 {[%clk 0:01:29]}  Qf3 {[%clk 0:00:12]} 45. Re3 {[%clk 0:01:28]}  Qd5 {[%clk 0:00:13]} 46. a4 {[%clk 0:01:27]}  Qc4 {[%clk 0:00:12]} 47. b6 {[%clk 0:01:08]}  Qc2 {[%clk 0:00:12]} 48. b7 {[%clk 0:00:59]}  Qxd2 {[%clk 0:00:07]} 49. b8=Q+ {[%clk 0:00:59]}  Kg7 {[%clk 0:00:06]} 50. Re8 {[%clk 0:00:55]}  Qd1+ {[%clk 0:00:03]} 51. Kg2 {[%clk 0:00:55]}  Qg4 {[%clk 0:00:02]} 52. Rg8+ {[%clk 0:00:53]}  Kh6 {[%clk 0:00:02]} 53. Qf8+ {[%clk 0:00:51]}  Kh5 {[%clk 0:00:01]} 54. Qc5+ {[%clk 0:00:51]}  Qf5 {[%clk 0:00:01]} 55. Qe3 {[%clk 0:00:42]}  Qd5+ {[%clk 0:00:02]} 56. f3 {[%clk 0:00:40]}  d2 {[%clk 0:00:03]} 57. g4+ {[%clk 0:00:41]}  Kxh4 {[%clk 0:00:03]} 58. Qh6+ {[%clk 0:00:41]}  Qh5 {[%clk 0:00:03]} 59. gxh5 {[%clk 0:00:36]}  d1=Q {[%clk 0:00:04]} 60. hxg6# {[%clk 0:00:33]} 1-0


[Site "https://www.chess.com"]